[Event "Bangabandhu Premier Div League 2022"]
[Site "Dhaka"]
[Date "2022.12.07"]
[Round "8.5"]
[White "Aaryan Varshney"]
[Black "Murshed, Niaz"]
[Result "1-0"]
[ECO "E11"]
[WhiteElo "2312"]
[BlackElo "2419"]
[Annotator "TA"]
[PlyCount "81"]
[EventDate "2022.12.01"]
[EventCountry "BAN"]
[SourceTitle "playchess.com"]
[Source "ChessBase"]
[SourceQuality "1"]
[TimeControl "40/5400+30:1800+30"]

{[%evp 17,81,46,53,57,60,35,57,46,74,49,54,48,45,50,58,54,41,41,53,24,54,45,56,31,67,54,55,54,96,75,95,31,37,45,41,28,58,75,79,62,103,104,119,120,156,159,301,287,275,261,283,276,293,278,5877,6031,5181,2513,1671,1431,29983,29984,29984,29985,29983,29984]} 1. d4 {[%emt 0:00:02]} Nf6 {[%emt 0:00:19]} 2. c4 {[%emt 0:00:05]} e6 {[%emt 0:00:18]} 3. Nf3 {[%emt 0:00:05]} Bb4+ {[%emt 0:00:53]} 4. Bd2 {[%emt 0:00:07]} a5 {[%emt 1:31:00]} 5. g3 {[%emt 0:00:22]} O-O {[%emt 0:00:00]} 6. Bg2 {[%emt 1:32:49]} d6 {[%emt 0:00:00]} 7. O-O {[%emt 0:00:00]} Bxd2 {[%emt 0:00:00]} 8. Qxd2 {[%emt 0:00:00]} Nbd7 {[%emt 0:00:00] The main line 8...Nbd7 scores better than 8...Qe7.} 9. Nc3 {[%emt 0:00:00]} e5 {[%emt 0:00:00]} 10. Rad1 {[%emt 0:02:00] E11: Bogo-Indian.} Qe7 {[%emt 0:03:00]} 11. e4 {[%emt 0:00:00][%cal Oc4c5]} c6 {[%emt 0:00:30]} 12. b3 {[%emt 0:01:00] [#] White is slightly better.} a4 $146 {[%emt 0:00:30]} ({Predecessor:} 12... Re8 13. Rfe1 Nf8 14. h3 Ng6 15. Nh2 h5 16. h4 Ng4 17. Nf1 f5 18. exf5 Bxf5 19. dxe5 dxe5 20. Ne4 Rad8 21. Nd6 Be6 22. Qg5 Qxg5 23. hxg5 {1-0 (23) Rodshtein,M (2459)-Van Midde,J (2064) Vlissingen 2005}) 13. Rfe1 {[%emt 0:00:30]} ({But not} 13. bxa4 Nb6 $11) 13... axb3 {[%emt 0:00:00]} 14. axb3 {[%emt 0:00:30]} Re8 {[%emt 0:00:00]} 15. h3 {[%emt 0:00:00]} g6 {[%emt 0:01:30]} 16. Qb2 {[%emt 0:01:00]} Qd8 {[%emt 0:00:30]} 17. Kh2 {[%emt 0:00:30]} Qc7 {[%emt 0:00:30]} 18. Na4 {[%emt 0:00:30]} Nh5 {[%emt 0:00:30]} 19. Qd2 {[%emt 0:00:00]} Ng7 {[%emt 0:00:00]} 20. Ra1 {[%emt 0:01:00]} (20. d5 {with more complications.} cxd5 21. Qxd5 Nb6 22. Nxb6 Qxb6 23. Qxd6 Qxf2 24. Rd2) 20... Qb8 {[%emt 0:01:00]} 21. dxe5 {[%emt 0:00:00]} dxe5 {[%emt 0:00:00]} 22. c5 {[%emt 0:00:00]} b5 {[%emt 0:00:00]} 23. cxb6 {[%emt 0:00:00] White is more active.} Nxb6 {[%emt 0:00:00]} 24. Nc5 {[%emt 0:00:00]} ({White should play} 24. Rec1 $16) 24... Rxa1 $1 $14 {[%emt 0:00:00]} 25. Rxa1 {[%emt 0:00:00]} Ne6 {[%emt 0:02:30]} 26. Qc3 {[%emt 0:03:00]} Qd6 {[%emt 0:00:00]} 27. Nxe6 {[%emt 0:00:00]} Qxe6 {[%emt 0:00:00]} 28. Ra5 {[%emt 0:00:00][%cal Ra5e5,Ba1a5,Ba5c5,Bc5c7,Bc7e7,Be7f7,Bf7g7,Bg7h7][%mdl 32]} f6 {[%emt 0:01:30]} 29. Qb4 $36 {[%emt 0:00:00][%mdl 2048] Black is under strong pressure.} Nd7 {[%emt 0:00:30]} 30. Bf1 {[%emt 0:00:00]} c5 {[%emt 0:00:00] [#]} 31. Rxc5 {[%emt 0:00:00] Black must now prevent Bc4.} Kh8 {[%emt 0:00:00]} (31... Nxc5 $2 32. Bc4 Kg7 33. Bxe6 Nxe6 34. Qb8 $18) (31... Ba6 $16 32. Bc4 Bxc4 33. Rxc4 Rb8) 32. Rc7 $18 {[%emt 0:00:00]} Nf8 {[%emt 0:01:30]} 33. g4 {[%emt 0:00:00] Threatens to win with Bc4.} Ba6 {[%emt 0:00:30]} 34. Bxa6 {[%emt 0:00:00]} Qxa6 {[%emt 0:00:00]} 35. Re7 {[%emt 0:04:30]} Rc8 {[%emt 0:01:00]} (35... Rxe7 36. Qxe7 Kg8) 36. Rf7 {[%emt 0:00:30]} Kg8 {[%emt 0:00:30]} 37. Qe7 {[%emt 0:00:00] White wants to mate with Rg7+.} Qb6 {[%emt 0:00:30]} 38. Kg3 {[%emt 0:01:00] White threatens Rg7+ and mate.} (38. Rxf6 $2 {leads to mate.} Qxf2+ 39. Kh1 Rc1+) 38... Qxb3 {[%emt 0:00:00]} 39. Rg7+ {[%emt 0:00:00] White mates.} Kh8 {[%emt 0:00:00]} 40. Qxf6 {[%emt 0:00:00][%csl Gf6][%cal Rg7g6]} Qe6 {[%emt 0:00:00] [#]} 41. Rxh7+ $3 {[%emt 0:22:21][%mdl 512] Weighted Error Value: White=0.08 (flawless) /Black=0.38} 1-0

[Event "Bangabandhu Premier Div League 2022"]
[Site "Dhaka"]
[Date "2022.12.07"]
[Round "8.6"]
[White "Pantsulaia, Levan"]
[Black "Alam, Monjur"]
[Result "1-0"]
[ECO "E60"]
[WhiteElo "2597"]
[BlackElo "1848"]
[Annotator "TA"]
[PlyCount "63"]
[EventDate "2022.12.01"]
[EventCountry "BAN"]
[SourceTitle "playchess.com"]
[Source "ChessBase"]
[SourceQuality "1"]
[TimeControl "40/5400+30:1800+30"]

{[%evp 17,63,39,35,33,85,83,81,84,91,82,100,75,95,77,92,87,122,83,231,209,232,200,200,195,212,221,303,305,339,341,495,495,468,470,719,735,730,704,767,768,776,747,1969,681,1920,1903,1818,1650]} 1. Nf3 {[%emt 1:31:00]} Nf6 {[%emt 0:17:44]} 2. g3 {[%emt 0:00:00]} g6 {[%emt 0:00:10]} 3. b3 {[%emt 0:00:00]} Bg7 {[%emt 0:00:10]} 4. Bb2 {[%emt 0:00:00]} d6 {[%emt 0:00:45]} 5. d4 {[%emt 0:00:00]} O-O {[%emt 0:00:07]} 6. Bg2 {[%emt 0:02:30]} c6 {[%emt 0:01:27]} 7. O-O {[%emt 0:00:30]} Qc7 {[%emt 0:01:47]} 8. c4 {[%emt 0:00:30]} Nbd7 {[%emt 0:01:54]} 9. Nc3 {[%emt 0:00:30]} e5 {[%emt 1:10:56]} 10. d5 {[%emt 0:00:00] E60: King's Indian: Unusual lines and Fianchetto Variation without Nc3.} c5 {[%emt 0:00:00]} (10... cxd5 $14 11. Nxd5 Nxd5 12. Qxd5 Nf6) 11. e4 $16 {[%emt 0:00:00]} a6 {[%emt 0:01:00][%cal Ob7b5] [#]} 12. a4 $146 {[%emt 0:00:00] Against b5. White is better.} ({Predecessor:} 12. a3 Nh5 13. Qd3 f5 14. exf5 gxf5 15. Ng5 Ndf6 16. Qe2 h6 17. Ne6 Bxe6 18. dxe6 {1-0 (32) Wessel,R-Lais,P freechess.de 2021}) 12... Ne8 {[%emt 0:00:00]} 13. Ra2 {[%emt 0:02:00] White is more active.} h6 {[%emt 0:01:00]} 14. Ba1 {[%emt 0:00:30]} Ndf6 {[%emt 0:00:30]} 15. Ne1 {[%emt 0:00:00]} Nh7 {[%emt 0:00:00]} 16. Nd3 {[%emt 0:01:00]} Qe7 {[%emt 0:01:00]} 17. f4 {[%emt 0:00:00]} f6 {[%emt 0:00:30] Loses the game.} (17... exf4 $16 18. gxf4 (18. Rxf4 Bd4+ 19. Kh1 Nef6 $11) 18... Bd4+ 19. Kh1 Nhf6) 18. h4 {[%emt 0:01:00]} Kh8 {[%emt 0:00:00]} 19. Kh2 {[%emt 0:00:30]} Rg8 {[%emt 0:01:00]} 20. a5 {[%emt 0:00:00]} Bd7 {[%emt 0:00:00]} 21. Na4 {[%emt 0:01:00]} Nf8 {[%emt 0:01:00]} 22. Nb6 {[%emt 0:00:00]} Rb8 {[%emt 0:00:30]} 23. Raf2 {[%emt 0:01:00]} f5 {[%emt 0:00:30]} (23... Bc8 {might work better.} 24. fxe5 dxe5) 24. fxe5 $18 {[%emt 0:00:00] White is clearly winning.} dxe5 {[%emt 0:00:30]} 25. Bh3 {[%emt 0:00:00][%cal Re4f5]} f4 {[%emt 0:00:00]} (25... Nd6 $142 26. Nxc5 Rd8 27. Ncxd7 Nxd7 28. exf5 gxf5 29. Bxf5 Nxf5) 26. Nxd7 {[%emt 0:00:00]} Nxd7 {[%emt 0:01:00]} 27. gxf4 {[%emt 0:02:00]} exf4 {[%emt 0:00:00]} 28. Bxd7 {[%emt 0:00:00]} Qxd7 {[%emt 0:01:00]} 29. Ne5 {[%emt 0:01:00]} Qc7 {[%emt 0:00:00]} 30. Nxg6+ {[%emt 0:00:00]} Kh7 {[%emt 0:00:00] [#]} 31. e5 $1 {[%emt 0:01:00] Intending Qd3 and mate.} Qf7 {[%emt 0:00:00]} 32. h5 {[%emt 0:00:00] Weighted Error Value: White=0.08 (flawless) /Black=0.45} 1-0

[Event "Bangabandhu Premier Div League 2022"]
[Site "Dhaka"]
[Date "2022.12.07"]
[Round "8.6"]
[White "Mohammad, Shameem"]
[Black "Narayanan.S.L"]
[Result "0-1"]
[ECO "D02"]
[WhiteElo "1892"]
[BlackElo "2673"]
[Annotator "TA"]
[PlyCount "46"]
[EventDate "2022.11.30"]
[EventType "team-tourn"]
[EventCountry "BAN"]
[SourceTitle "playchess.com"]
[Source "ChessBase"]
[SourceQuality "1"]
[TimeControl "40/5400+30:1800+30"]

{[%evp 11,46,-27,-31,-37,-31,-92,-87,-110,-95,-102,-97,-102,-103,-99,-90,-102,-103,-108,-95,-151,-100,-298,-296,-278,-290,-380,-327,-469,-355,-344,-315,-922,-916,-1139,-1112,-1412,-1313]} 1. d4 {[%emt 0:00:06]} Nf6 {[%emt 0:00:11]} 2. Nf3 {[%emt 0:00:32]} c5 {[%emt 0:00:12]} 3. g3 {[%emt 0:00:23]} cxd4 {[%emt 0:01:03]} 4. Nxd4 {[%emt 0:00:21]} d5 {[%emt 0:00:12]} 5. Bg2 {[%emt 0:00:04]} e5 {[%emt 0:00:06]} 6. Nf3 {[%emt 0:00:36]} Nc6 {[%emt 0:00:14]} 7. O-O {[%emt 0:00:22][%cal Oc2c4] D02: 1 d4 d5 2 Nf3 sidelines, including 2...Nf6 3 g3 and 2...Nf6 3 Bf4.} Be7 {[%emt 0:03:08]} 8. c3 {[%emt 0:07:38]} (8. c4 $1 $15) 8... O-O $17 {[%emt 0:00:30]} 9. b4 {[%emt 0:02:53] Black is better.} a6 {[%emt 0:00:59]} 10. Bb2 {[%emt 0:00:48][%cal Oc3c4] [#]} e4 $146 {[%emt 0:06:06] Against c4} ({Predecessor:} 10... Qb6 11. a4 Rd8 12. a5 Qc7 13. e3 e4 14. Nd4 Bg4 15. Qb3 Ne5 16. Nd2 h5 {0-1 (25) Kanagenthiran,P (1917)-Mazza,S ICCF email 2016}) 11. Nd4 {[%emt 0:00:26]} Nxd4 {[%emt 0:00:33]} 12. Qxd4 {[%emt 0:00:06]} Ng4 {[%emt 0:00:38]} 13. h3 {[%emt 0:04:31]} Bf6 {[%emt 0:00:54]} 14. Qd1 {[%emt 0:03:06]} Ne5 {[%emt 0:00:09] Black is more active.} 15. Na3 {[%emt 0:15:22]} (15. Nd2 $142) 15... h5 {[%emt 0:02:59]} ({Black should play} 15... a5 16. Qb1 Be6) 16. f4 $2 {[%emt 0:04:58] [#]} (16. c4 $17 {might work better.}) 16... exf3 $19 {[%emt 0:00:16]} 17. exf3 {[%emt 0:00:40]} Bf5 {[%emt 0:00:20]} 18. f4 {[%emt 0:03:11]} Nd3 {[%emt 0:00:13]} 19. Qd2 {[%emt 0:02:05]} (19. Rb1 $142 a5 20. Nc2 (20. Qxh5 $2 {loses.} g6 $19)) 19... Nxb2 {[%emt 0:00:39]} 20. Qxb2 {[%emt 0:00:24]} d4 {[%emt 0:00:05][%cal Bd5d4,Bd4d3][%mdl 32]} 21. c4 $2 {[%emt 0:15:15] [#]} (21. Rad1 dxc3 22. Qf2) 21... d3 {[%emt 0:00:07] Black is clearly winning.} 22. Qd2 {[%emt 0:00:16]} Bxa1 {[%emt 0:00:05]} 23. Rxa1 {[%emt 0:00:09]} Qd4+ {[%emt 0:00:02] White got outplayed after the opening.   Weighted Error Value: White=1.15/Black=0.14 (very precise)} 0-1

[Event "Bangabandhu Premier Div League 2022"]
[Site "Dhaka"]
[Date "2022.12.07"]
[Round "8.7"]
[White "Idani, Pouya"]
[Black "Habibur Rahman, Sohel"]
[Result "1-0"]
[ECO "A02"]
[WhiteElo "2631"]
[BlackElo "1871"]
[Annotator "TA"]
[PlyCount "83"]
[EventDate "2022.11.30"]
[EventType "team-tourn"]
[EventCountry "BAN"]
[SourceTitle "playchess.com"]
[Source "ChessBase"]
[SourceQuality "1"]
[TimeControl "40/5400+30:1800+30"]

{[%evp 9,83,9,29,29,34,33,41,32,89,88,101,87,96,94,92,81,115,89,111,102,150,145,167,160,196,188,255,250,264,218,192,182,197,183,187,160,257,176,147,155,196,195,178,102,113,100,111,82,156,77,152,68,86,95,110,114,108,100,95,50,1502,1437,2015,1251,1425,981,972,972,750,385,29985,29986,29986,29987,29987,29988]} 1. g3 {[%emt 0:00:06]} Nf6 {[%emt 0:00:39]} 2. Bg2 {[%emt 0:00:06]} g6 {[%emt 0:00:58]} 3. f4 {[%emt 0:00:11]} d6 {[%emt 0:00:56]} 4. Nf3 {[%emt 0:00:18]} Bg7 {[%emt 0:00:48]} 5. d3 {[%emt 0:00:10]} Nc6 {[%emt 0:02:04]} 6. e4 {[%emt 0:00:55] A02: Bird's Opening.} Bg4 {[%emt 0:04:54]} 7. h3 {[%emt 0:00:55]} Bxf3 {[%emt 0:04:10]} 8. Qxf3 {[%emt 0:00:10] [#] White is slightly better.} Nh5 $146 {[%emt 0:04:25]} (8... e5 $14) ({Predecessor:} 8... e5 9. f5 Nh5 10. c3 Bf6 11. O-O O-O 12. Na3 Bg5 13. h4 Bxc1 14. Raxc1 Kg7 {1-0 (25) Moeller,P (1965)-Hodl,I (1979) Mecklenburg VP 2013}) 9. c3 $16 {[%emt 0:00:55]} e6 {[%emt 0:02:41]} 10. O-O {[%emt 0:02:11]} O-O {[%emt 0:00:30]} 11. g4 {[%emt 0:01:06][%cal Bg3g4,Bg4g5][%mdl 32]} Nf6 {[%emt 0:00:23]} 12. Be3 {[%emt 0:01:07]} Nd7 {[%emt 0:02:39]} 13. d4 {[%emt 0:02:39]} Nb6 {[%emt 0:01:30]} 14. Nd2 {[%emt 0:00:05]} Rb8 {[%emt 0:03:08]} (14... f5 $142) 15. f5 {[%emt 0:00:14]} Nd7 {[%emt 0:07:14] Against f6} 16. g5 {[%emt 0:00:21]} exf5 {[%emt 0:01:24]} 17. exf5 {[%emt 0:00:06]} f6 {[%emt 0:00:37]} (17... gxf5 {was necessary.} 18. Qxf5 Ne7) 18. fxg6 $18 {[%emt 0:03:15]} hxg6 {[%emt 0:02:03]} 19. Qg4 {[%emt 0:01:36]} Ne7 {[%emt 0:05:08] Against Bd5+} 20. Rae1 {[%emt 0:00:41] aiming for Qe6+.} f5 {[%emt 0:05:49]} 21. Qg3 {[%emt 0:00:05]} Nb6 {[%emt 0:01:41]} 22. h4 $1 {[%emt 0:07:12]} Ned5 {[%emt 0:05:23]} (22... Qe8 $16 23. h5 gxh5) 23. Bf2 {[%emt 0:01:53]} Qd7 {[%emt 0:05:19]} 24. c4 {[%emt 0:00:19]} Ne7 {[%emt 0:08:40]} 25. Qb3 {[%emt 0:00:19] Threatens to win with c5+.} c6 {[%emt 0:02:23]} 26. c5+ {[%emt 0:05:52]} ({Better is} 26. Re2 $18) 26... Nbd5 $16 {[%emt 0:00:28]} 27. Nc4 {[%emt 0:00:06]} dxc5 {[%emt 0:01:21]} 28. dxc5 {[%emt 0:00:06]} Kh7 {[%emt 0:02:57]} 29. h5 {[%emt 0:01:34]} ({White should try} 29. Qf3 $1) 29... Nf4 {[%emt 0:04:04] [#]} (29... gxh5 $142 30. Qd1 Kg8) 30. Nd6 {[%emt 0:06:16]} (30. Bg3 $1 $16 Nxh5 31. Bxb8 Rxb8 32. Nd6) 30... Nxh5 {[%emt 0:06:47] [#]} 31. Bf3 $1 {[%emt 0:00:06] Strongly threatening Bxh5. White has more active pieces.} Nd5 {[%emt 0:01:22]} 32. Bxh5 {[%emt 0:02:11]} gxh5 {[%emt 0:00:21]} 33. Qf3 $36 {[%emt 0:01:41][%mdl 2048] White is on the roll.} Kg6 {[%emt 0:01:38][%cal Of8e8]} 34. Re2 {[%emt 0:00:44] Inhibits Rfe8. And now Rfe1 would win.} f4 $2 {[%emt 0:04:26][%mdl 8192] This costs Black the game.} (34... Rbe8 $14) 35. Qd3+ $18 {[%emt 0:01:23]} Kxg5 {[%emt 0:00:16]} 36. Kh2 {[%emt 0:02:31]} Nf6 {[%emt 0:04:43]} 37. Kh1 {[%emt 0:03:36] Rg1+ is the strong threat.} Rbd8 {[%emt 0:01:46]} 38. Re5+ {[%emt 0:02:32]} Kh6 {[%emt 0:00:43]} 39. Bh4 {[%emt 0:00:34][%csl Ge5][%cal Rh4g5]} Nh7 {[%emt 0:01:52] [#] Prevents Bg5+.} (39... Qg4 $18 40. Bg5+ Qxg5 41. Rxg5 Kxg5 42. Rg1+ Ng4) 40. Rg1 $1 {[%emt 0:01:06][%csl Gd3][%cal Rg1g6][%mdl 64] White mates.} Qg4 {[%emt 0:00:51]} 41. Rxg4 {[%emt 0:30:09]} hxg4 {[%emt 0:30:19]} 42. Re6+ {[%emt 0:00:44] Weighted Error Value: White=0.31/Black=0.37} 1-0

[Event "Bangabandhu Premier Div League 2022"]
[Site "Dhaka"]
[Date "2022.12.07"]
[Round "8.7"]
[White "Kushagra Mohan"]
[Black "Rakhmanov, Aleksandr"]
[Result "1/2-1/2"]
[ECO "C43"]
[WhiteElo "2390"]
[BlackElo "2630"]
[Annotator "TA"]
[PlyCount "60"]
[EventDate "2022.12.01"]
[EventCountry "BAN"]
[SourceTitle "playchess.com"]
[Source "ChessBase"]
[SourceQuality "1"]
[TimeControl "40/5400+30:1800+30"]

{[%evp 14,60,0,0,0,0,0,0,0,0,20,7,27,34,26,22,25,15,13,12,12,8,9,16,10,0,52,33,35,38,54,54,47,27,27,27,47,47,72,34,34,6,6,6,6,6,6,6,6]} 1. e4 {[%emt 0:00:01]} e5 {[%emt 0:00:06]} 2. Nf3 {[%emt 0:00:08]} Nf6 {[%emt 1:31:24]} 3. d4 {[%emt 0:00:05]} Nxe4 {[%emt 0:00:00]} 4. Bd3 {[%emt 0:00:02]} d5 5. Nxe5 {[%emt 1:32:44]} Nd7 {[%emt 0:00:00]} 6. Nc3 {[%emt 0:00:00]} Nxe5 {[%emt 0:00:00]} 7. dxe5 {[%emt 0:01:00]} Nxc3 {[%emt 0:00:00]} 8. bxc3 {[%emt 0:00:00]} Bc5 {[%emt 0:00:00] C43: Petroff Defence: 3 d4.} 9. O-O {[%emt 0:01:00]} O-O {[%emt 0:03:30] 9...0-0 is better than 9...Be6.} 10. Qh5 {[%emt 0:00:00][%csl Gd3][%cal Rh5h7] [#]} g6 $1 {[%emt 0:00:00]} 11. Qh6 {[%emt 0:00:00]} Re8 {[%emt 0:00:00]} 12. Bg5 {[%emt 0:00:00][%cal Bc1g5,Bg5d8,Bd8c7,Bc7d6][%mdl 32]} Bf8 {[%emt 0:00:00]} 13. Bxd8 {[%emt 0:02:00]} Bxh6 {[%emt 0:00:00]} 14. Bxc7 {[%emt 0:00:00]} Bf5 {[%emt 0:00:00]} 15. Bxf5 {[%emt 0:00:00]} gxf5 {[%emt 0:03:00]} 16. Rad1 {[%emt 0:01:30]} Rac8 {[%emt 0:00:00]} 17. Bd6 {[%emt 0:00:30]} Rxc3 {[%emt 0:00:00]} 18. Rxd5 {[%emt 0:00:00]} Rxc2 {[%emt 0:01:30]} 19. a4 {[%emt 0:01:00] [#]} Bf8 $146 {[%emt 0:00:00]} (19... Ra2 $11) ({Predecessor:} 19... Rd2 20. Rxd2 Bxd2 21. Rd1 Bc3 22. f4 f6 23. Rc1 Bd4+ 24. Kf1 fxe5 25. fxe5 b6 {½-½ (33) Ivic,V (2606)-Rakhmanov,A (2657) Riga 2021}) 20. Rb1 b6 {[%emt 0:01:00] Against g4} 21. a5 {[%emt 0:01:00]} Bxd6 {[%emt 0:00:00]} 22. exd6 $14 {[%emt 0:00:30][%mdl 4096] Endgame KRR-KRR} Rd8 {[%emt 0:01:00]} 23. axb6 {[%emt 0:00:00]} axb6 {[%emt 0:00:30]} 24. g3 {[%emt 0:00:00]} Rc6 25. d7 {[%emt 0:01:30][%cal Og1g2]} Kf8 {[%emt 0:01:00]} 26. Rdb5 {[%emt 0:00:00] White is more active.} Rxd7 {[%emt 0:00:00][%cal Of5f4]} 27. Rxb6 {[%emt 0:00:00]} Rxb6 {[%emt 0:01:00] The position is equal.} 28. Rxb6 {[%emt 0:00:00]} Kg7 {[%emt 0:00:00]} 29. Rb4 {[%emt 0:02:00]} Kg6 {[%emt 0:00:00]} 30. Kg2 {[%emt 0:00:00]} Rd2 {[%emt 0:00:00] Weighted Error Value: White=0.06 (flawless) /Black=0.11 (very precise)} 1/2-1/2